Cogmind - Beta 14 @@@ ROGUE MODE // 2024.08.13 @ 19:38:12 Player: Hiredgoonthug Result: Destroyed by as-12947 with Assembled Heavy Rifle Performance ------------- Evolutions (0) 0 Regions Visited (2) 400 Robots Destroyed (6) 30 Value Destroyed (104) 104 Prototype IDs (1) 20 Alien Tech Used (0) 0 Bonus (0) 0 TOTAL SCORE: 554 Bonus ------- None Cogmind --------- Core Integrity 0/250 Matter 57/300 Energy 100/100 System Corruption 3% Temperature Cool (0) Movement Core (400) Ox7 Location -10/Mines Parts ------- > --- POWER (1) -------- (None) > --- PROPULSION (2) --- (None) > --- UTILITY (2) ------ Large Storage Unit > --- WEAPON (2) ------- Rocket Launcher > --- INVENTORY (15) --- Light Ion Engine Wheel Wheel Tractor Beam Improved EM Shotgun Improved EM Shotgun Small Laser Assault Rifle Light Assault Rifle Peak State ------------ > --- POWER ------------ Light Ion Engine > --- PROPULSION ------- Light Treads Light Treads > --- UTILITY ---------- Small Storage Unit Tractor Beam > --- WEAPON ----------- Improved EM Shotgun Improved EM Shotgun > --- INVENTORY -------- Light Ion Engine Wheel Wheel Small Laser Assault Rifle Light Assault Rifle Rocket Launcher Rocket Launcher [Rating: 12] Favorites ----------- Power Light Ion Engine Engine Light Ion Engine Propulsion Light Treads Treads Light Treads Utility Large Storage Unit Device Heat Sink Storage Large Storage Unit Weapon Improved EM Shotgun Energy Gun Improved EM Shotgun Ballistic Gun Assault Rifle Launcher Rocket Launcher Build | -11 -10 -10 ------- Run | Yrd Mat Min Slots Evolved . | . . . Power . | . . . Propulsion . | . . . Utility . | . . . Weapon . | . . . Parts Attached 13 | 7 4 2 Power 1 | 1 . . Engine 1 | 1 . . Core . | . . . Reactor . | . . . Propulsion 2 | 2 . . Treads 2 | 2 . . Leg . | . . . Wheel . | . . . Hover . | . . . Flight . | . . . Utility 4 | 2 2 . Device 2 | 1 1 . Storage 2 | 1 1 . Processor . | . . . Hackware . | . . . Protection . | . . . Artifact . | . . . Weapon 6 | 2 2 2 Energy Gun 2 | . 2 . Energy Cannon . | . . . Ballistic Gun 2 | 2 . . Ballistic Cannon . | . . . Launcher 2 | . . 2 Special Weapon . | . . . Impact Weapon . | . . . Slashing Weapon . | . . . Piercing Weapon . | . . . Special Melee Weapon . | . . . Unidentified Prototypes 1 | . 1 . Parts Lost 5 | . . 5 Power 1 | . . 1 Propulsion 2 | . . 2 Utility 1 | . . 1 Weapon 1 | . . 1 Highest Loss Streak 5 | . . 5 To Critical Strikes 1 | . . 1 Average Slot Usage (%) 98 | . 100 97 Engine 13 | . 14 13 Treads 27 | . 28 27 Device 13 | . 14 13 Storage 14 | . 14 14 Energy Gun 26 | . 26 25 Launcher 1 | . . 1 Peak Build Rating 12 | 7 12 12 Average Rating 11 | 4 11 11 On Entrance 6 | . 7 12 Naked Turns . | . . . Heaviest Build 32 | 12 30 32 Greatest Support 40 | 40 40 40 Greatest Overweight (x) . | . . . Average Overweight (x) . | . . . Largest Inventory Capacity 15 | 8 15 15 Average Capacity 13 | 7 12 15 Most Carried 9 | 4 9 9 Average Carried 8 | 2 7 9 Final Capacity 15 | 8 15 15 Final Carried 9 | 4 9 9 Class Distribution -------------------- 100% | Mutant Dominant Class ---------------- Mutant | -10/Materials Mutant | -10/Mines Resources | -11 -10 -10 ----------- Run | Yrd Mat Min Matter Collected 318 | 278 30 10 Remotely 221 | 191 30 . Salvage Created 281 | 90 83 108 Parts 12 | 2 3 7 Haulers Intercepted . | . . . Recyclers Shooed . | . . . Parts Field Recycled . | . . . Retrieved Matter . | . . . Parts Self-Destructed . | . . . Prevented . | . . . Kills | -11 -10 -10 ------- Run | Yrd Mat Min Combat Hostiles Destroyed 21 | . 2 19 Guns 4 | . 2 2 AOE 17 | . . 17 Classes Destroyed 4 | 1 1 2 Recycler 1 | 1 . . Swarmer 3 | . . 3 Grunt 2 | . 2 . Assembled 16 | . . 16 Best Kill Streak 16 | 1 2 16 Combat Bots Only 16 | . 2 16 Max Kills in Single Turn 4 | 1 1 4 Gunslinging . | . . . Exploded 4 | . . 4 Melee . | . . . Uniques/NPCs Destroyed . | . . . Combat | -11 -10 -10 -------- Run | Yrd Mat Min Hostile Shots Fired 65 | . 2 63 Missed 15 | . . 15 Damage Taken 884 | . 23 861 Core 255 | . 11 244 Absorbed by Shields . | . . . Core Remaining (%) 100 | 100 . . Volleys Fired 26 | 2 3 21 Largest 2 | 2 2 2 Hottest 90 | 40 90 90 Shots Fired 44 | 4 6 34 Gun 22 | 4 6 12 Cannon . | . . . Launcher 22 | . . 22 Special . | . . . Kinetic 4 | 4 . . Thermal . | . . . Explosive 22 | . . 22 Electromagnetic 18 | . 6 12 Robot Hit Streak 6 | 1 6 4 Robot Miss Streak 5 | 1 2 5 Penetration Max . | . . . Secondary Targets . | . . . Shots Hit Robots 23 | 2 5 16 Core Hits 35 | 2 4 29 Critical Kills . | . . . Critical Parts Destroyed . | . . . Critical Strikes . | . . . Melee Attacks . | . . . Impact . | . . . Slashing . | . . . Piercing . | . . . Sneak Attacks . | . . . Combat Hostiles . | . . . Follow-up Attacks . | . . . Damage Inflicted 1338 | 16 81 1241 Guns 199 | 16 81 102 Cannons . | . . . Explosions 1139 | . . 1139 Melee . | . . . Ramming . | . . . Kinetic 16 | 16 . . Thermal 83 | . . 83 Explosive 1056 | . . 1056 Electromagnetic 183 | . 81 102 Impact . | . . . Slashing . | . . . Piercing . | . . . Highest Corruption 3 | . . 3 Average Corruption 2 | . . 2 Corruption Purged . | . . . Corruption Blocked . | . . . Effects 1 | . . 1 Matter Fused 1 | . . 1 Overload Shots . | . . . Overflow Damage 119 | . . 119 Projectiles . | . . . Explosions 119 | . . 119 Melee . | . . . Knockbacks . | . . . Impact . | . . . Kinetic . | . . . Secondary . | . . . Self-Inflicted Damage 167 | . . 167 Shots 6 | . . 6 Rammed . | . . . Targets Rammed . | . . . Kicked . | . . . Crushed . | . . . Highest Temperature 102 | . 102 93 Average Temperature 49 | . 52 48 Received Heat Transfer 112 | . 12 100 Siege Activations . | . . . Robots Corrupted . | . . . Combat Hostiles . | . . . Parts Fried 1 | . . 1 Impact Corruptions . | . . . Robots Melted . | . . . Combat Hostiles . | . . . Parts Melted . | . . . Heat Transferred 100 | . . 100 Parts Sabotaged . | . . . Parts Stolen . | . . . Parts Stripped . | . . . Power Chain Reactions 1 | . . 1 Alert | -11 -10 -10 ------- Run | Yrd Mat Min Peak Influence 159 | 5 88 159 Initial 34 | . 3 34 Average 42 | 1 30 52 Maximum Alert Level . | . . . Low Security (%) 100 | 100 100 100 Level 1 . | . . . Level 2 . | . . . Level 3 . | . . . Level 4 . | . . . Level 5 . | . . . High Security . | . . . Max Security . | . . . Squads Dispatched 2 | . 2 . Investigation 1 | . 1 . Extermination . | . . . Reinforcement 1 | . 1 . Assault . | . . . Garrison . | . . . Intercept . | . . . Searches Triggered . | . . . Construction Impeded . | . . . Haulers Reinforced . | . . . Active Scanning Responses . | . . . Cargo Convoy Interrupts . | . . . Stealth | -11 -10 -10 --------- Run | Yrd Mat Min Distress Signals 1 | . 1 . Communications Jammed . | . . . Distress Signals . | . . . Times Spotted 29 | . 5 24 Peak Tracking Total 13 | . 4 13 Tactical Retreats 1 | . . 1 Traps | -11 -10 -10 ------- Run | Yrd Mat Min Traps Triggered . | . . . Indirectly . | . . . Trap Hack Attempts . | . . . Triggered . | . . . Disarmed . | . . . Reprogrammed . | . . . Reused . | . . . Traps Extracted . | . . . Installed . | . . . Triggered . | . . . Machines | -11 -10 -10 ---------- Run | Yrd Mat Min Machines Disabled . | . . . Max in Single Turn . | . . . Machines Repaired . | . . . Machines Dismantled . | . . . Machines Sabotaged . | . . . Overloaded Fab Kills . | . . . Hacking | -11 -10 -10 --------- Run | Yrd Mat Min Machines Accessed 2 | . 2 . Terminals 2 | . 2 . Fabricators . | . . . Repair Stations . | . . . Recycling Units . | . . . Scanalyzers . | . . . Garrison Access . | . . . Total Hacks 7 | . 7 . Successful 1 | . 1 . Failed 6 | . 6 . Catastrophic . | . . . Database Lockouts . | . . . Manual 7 | . 7 . Terminals 7 | . 7 . Fabricators . | . . . Repair Stations . | . . . Recycling Units . | . . . Scanalyzers . | . . . Garrison Access . | . . . Terminal Hacks . | . . . Fabricator Hacks . | . . . Repair Station Hacks . | . . . Recycling Unit Hacks . | . . . Scanalyzer . | . . . Garrison Access Hacks . | . . . Unauthorized Hacks 1 | . 1 . Terminals 1 | . 1 . Botnet 1 | . 1 . Fabricators . | . . . Repair Stations . | . . . Recycling Units . | . . . Scanalyzers . | . . . Garrison Access . | . . . Data Cores Recovered . | . . . Used . | . . . Hacking Detections 2 | . 2 . Full Trace Events 1 | . 1 . Feedback Events . | . . . Feedback Blocked . | . . . Robot Schematics Acquired . | . . . Robots Built . | . . . Authchips . | . . . Time . | . . . Total Robot Build Rating . | . . . Part Schematics Acquired . | . . . Parts Built . | . . . Authchips . | . . . Time . | . . . Total Part Build Rating . | . . . Parts Repaired . | . . . Time . | . . . Parts Recycled . | . . . Recycled Matter . | . . . Retrieved Matter . | . . . Retrieved Components . | . . . Parts Scanalyzed . | . . . Part Schematics Acquired . | . . . Parts Damaged . | . . . Bothacking | -11 -10 -10 ------------ Run | Yrd Mat Min Used RIF Installer . | . . . Robots Hacked . | . . . Non-combat . | . . . Combat . | . . . Robot Hacks Applied . | . . . Relay Couplers Released . | . . . Fabnet Peak Effective % . | . . . Robots Rewired . | . . . Allies Hacked . | . . . Hacks Repelled . | . . . Allies | -11 -10 -10 -------- Run | Yrd Mat Min Total Allies . | . . . Largest Group . | . . . Highest-Rated Group . | . . . Highest-Rated Ally . | . . . Total Orders . | . . . Ally Attacks . | . . . Total Damage . | . . . Kills . | . . . Allies Corrupted . | . . . Allies Melted . | . . . Intel | -11 -10 -10 ------- Run | Yrd Mat Min Robot Analysis Total . | . . . Derelict Logs Recovered 1 | . . 1 Drone Launches . | . . . Drone Recoveries . | . . . Exploration | -11 -10 -10 ------------- Run | Yrd Mat Min Turns Passed 940 | 96 221 623 Spaces Moved 380 | 51 120 209 Core 4 | 4 . . Treads 376 | 47 120 209 Legs . | . . . Wheels . | . . . Hover . | . . . Flight . | . . . Fastest Speed 50 | 50 160 160 Average Speed 158 | 151 160 160 Slowest Speed 160 | 160 160 160 Overloaded Moves . | . . . Propulsion Burnouts . | . . . Robots Hopped . | . . . Cave-ins Triggered . | . . . Exploration Rate (%) 24 | 5 29 40 Regions Visited 2 Branch Regions 1 Pre-discovered Areas . | . . . Known Exits Taken . | . . . Unknown Exits Taken 2 | 1 1 . Scrap Searched . | . . . Spaces Dug 23 | . . 23 Terrain Destroyed 175 | . . 175 Melee . | . . . Projectile . | . . . AOE 175 | . . 175 Terrain Rammed . | . . . Walls Destroyed . | . . . Machines Disabled . | . . . Actions | -11 -10 -10 --------- Run | Yrd Mat Min Total 669 | 63 143 463 Wait 242 | . 11 231 Move 378 | 50 119 209 Hop . | . . . Pick Up 9 | 4 5 . Fast Attach 7 | 7 . . Attach . | . . . Detach . | . . . Swap 6 | . 4 2 Drop 1 | . 1 . Fire 26 | 2 3 21 Melee . | . . . Ram . | . . . Kick . | . . . Crush . | . . . Escape Stasis . | . . . Rewire . | . . . Trap . | . . . Miscellaneous . | . . . Route ------- -11/Scrapyard -10/Materials -10/Mines History --------- Turn | Location | Event 11 | -11/Scrapyard | Discovered new exit (range 16) 97 | -11/Scrapyard | Entered Materials 296 | -10/Materials | Discovered new exit (range 13) 315 | -10/Materials | Build established: Mutant 318 | -10/Materials | Entered Mines 852 | -10/Mines | Assembled infested the area 892 | -10/Mines | Received a Rocket Launcher from a helpful Derelict 924 | -10/Mines | Core integrity fell below 50% 927 | -10/Mines | Core integrity fell below 20% 941 | -10/Mines | Destroyed by as-12947 with Assembled Heavy Rifle Last Messages --------------- 00920_ Lgt. Ion Engine destroyed. 00920_ System corrupted by crushing effect (+1). 00923_ The unstable cave ceiling collapses. 00923_ Destroyed Asb. Hover Unit. 00923_ Rocket Launcher destroyed. 00923_ Destroyed Rocket Launcher. 00923_ as-04314 destroyed. 00923_ as-13079 destroyed. 00926_ The unstable cave ceiling collapses. 00926_ as-55838 destroyed. 00927_ The unstable cave ceiling collapses. 00929_ System corrupted: Matter fused (-6). 00929_ Lgt. Treads destroyed. 00930_ The unstable cave ceiling collapses. 00931_ Critical hit (Destroy). 00931_ Lgt. Treads destroyed. 00932_ The unstable cave ceiling collapses. 00935_ as-23151 destroyed. 00936_ The unstable cave ceiling collapses. 00940_ K-01 Serf collects debris. Map ----- +----------------------------------------------------+ | ???????????????????????????????????????????###### | | ????????????????????????????????????????????????# | | ????????????????????????????????????????????????## | | ?????????????????????????????????????????????????? | | ??????????????????????????????????????????????#??? | | ?????????????????????????????????????????????## ?? | | ?????????????????????????????????????????????# | | ?????????????????????????????????????????????# | | ??????????????????????????????????????????????# | | ?????????????????????????????????????????????## | | ??????????????????????????? ?????????????????# | | ???????????????????????? # ???????????????# | | ??????????#???????????? ????????????????# | | ?????????? #??????????? ????????#?????? | | ?????????? ##????#????? ?????? ?????? | | ?????????? #?## ????? ?????? ?????? | | ??????????? ? ?????? ????? ?????? | | ??????????? ? ?????? ????? ?????? | | ??????????? ? ??????? ##??# #????? | | ??????????? ? ??????? ]a #??# #????? | | ???????????# #? ##????## ? #??# #????? | | ???????????# #?# ## #### % ???# #??# #????? | | ???????????# ### # #????# #??# #????? | | ???????????# # # ###### #??# #????? | | ???????### ## ##?# #????? | | ???????# %@% ## ### ###### | | ???????# % ## ## | | ???????# ##### ######## | | ??????????? # ### ##??????# | | ???????????######### ## ## k #???????## | | ???????????????????###?### # ##??????### | | ????????????????????????# ### ##?????## | | ????????????????????????# ## ##???## | | ????????????????????????# ## #???# | | ???????????????????????# ### #??## | | ??????????????????????# ###?# ##?## | | ??????????????????????# ##???## ##?## | | ??????????????????????## #??????######??# ## | | ???????????????????????####???????????????# ## | | ??????????????????????????????????????????# | | ??????????????????????????????????????????## ## | | ???????????????????????????????????????????## ##? | | ????????????????????????????????????????????####?? | | ?????????????????????????????????????????????????? | | ?????????????????????????????????????????????????? | | ?????????????????????????????????????????????????? | | | | | | | | | +----------------------------------------------------+ Best States ------------- Heat Dissipation 35 Energy Generation 10 Energy Capacity 125 Matter Stores 300 Matter Capacity 300 Sight Range 16 Terrain Scan Density 10 Evasion (%) 40 Recoil Reduction 2 Item Schematics ----------------- None Robot Schematics ------------------ None Fabricated ------------ Nothing Alien Tech Used ----------------- None Achievements -------------- None Challenges ------------ None Game ------ Seed RingFieldDoomcannon Manual? 0 Play Time 00:07:22 Cumulative 22.8 hours Start 2024.08.13 @ 19:30:33 End 2024.08.13 @ 19:38:12 Sessions 1 Manual Loads 0 Difficulty Rogue Special Mode None Game No. 30 Rogue 30 Adventurer 0 Explorer 0 Win Type - Total 0 Types 0/0/0/0/0/0/0/0/0 Lore% 14 Gallery% 27 Achievement% 29 Wizard Run 0 Options --------- Layout 0 ASCII 0 Keyboard 0 Movement Mouse Keybinds 0 Fullscreen 2 Font 24/Terminus Map View 76x50 Zoom Use 0% Tactical HUD 1 Map Filters NONE Filters NONE Steam 1 RUN: e040a773-d05e-4118-b7a0-1acca1d3a354